{"text_format":"1","workbook":"xlsx","n_sheets":3,"sheets":["Liste choix référentiels","Accueil","Liste produits"],"not_rendered":{"charts":0,"images":0,"macros":1,"external_links":0,"defined_names":39,"comments":0,"pivot_tables":0},"unopened":[],"bounds":{"document_bytes":16777216,"sheet_cells":100000,"rows_first":2000,"rows_last":500,"rows_between":2000,"halvings":0,"cell_chars":16384,"cell_head_chars":4096},"cells_cut":0,"cells_raw":0,"read":"whole","date_system":"1900"}

{"sheet":"Liste choix référentiels","index":0,"n_rows":34,"n_cols":40,"rows_kept":34,"cut":false,"hidden":false,"merged":[]}
["Liste code catégorie","Liste nom catégorie","Liste code dessert midi retraite","Liste nom dessert midi retraite","Liste code dessert soir","Liste nom dessert soir","Liste code desserts weekend","Liste nom desserts weekend","Liste code légumes midi retraite","Liste nom légumes midi retraite","Liste code légumes soirs lundi mardi","Liste nom légumes soirs lundi mardi","Liste code légumes soirs mercredi jeudi","Liste nom légumes soirs mercredi jeudi","Liste code légumes soir vendredi","Liste nom légumes soir vendredi","Liste code légumes weekend dimanche","Liste nom légumes weekend dimanche","Liste code légumes weekend samedi","Liste nom légumes weekend samedi","Liste code observations","Liste nom observations","Liste code période concernée","Liste nom période concernée","Liste code période viandes weekend","Liste nom période viandes weekend","Liste code viandes midi retraite","Liste nom viandes midi retraite","Liste code viandes soirs","Liste nom viandes soirs","Liste code viandes weekend","Liste nom viandes weekend","Liste code jours","Liste nom jours","Liste code conditionnement","Liste nom conditionnement","Liste code destination","Liste nom destination","Liste code à modifier","À modifier"]
["CC01","DMR","DMR01","Pomme","DS01","Pomme","DWE01","Ananas","LMR01","Asperges","LSLM01","Cassoulet","LSMJ01","Macédoine de légumes","LSV01","Asperges","LWED01","Asperges","LWES01","Pâtes à la sauce tomates","O01","Armistice du 11 novembre 1918","PC01","Janvier","PVWE01","Viande weekend premier semestre","VMR01","Rôti d'agneau","VS01","Bifteck haché de bœuf","VWE01","Agneau","CJ01","Dimanche midi","CC01","1 bocal ou 1 boîte pour 1 repas","CD01","Menus journaliers","LCÀM01","Non"]
["CC02","DS",null,null,null,null,"DWE02","Autres fruits","LMR02","Avocat","LSLM02","Choucroute","LSMJ02","Petits pois","LSV02","Avocat","LWED02","Chips","LWES02","Pâtes au beurre","O02","Ascension","PC02","Février","PVWE02","Viande weekend deuxième semestre","VMR02","Rôti de bœuf","VS02","Bifteck haché de cheval","VWE02","Bœuf","CJ02","Dimanche midi et soir","CC02","1 boîte de six œufs. 3 œufs pour 1 repas","CD02","Menus midi retraite","LCÀM02","Oui"]
["CC03","DWE",null,null,null,null,"DWE03","Avocats","LMR03","Carottes","LSLM03","Chou-fleur","LSMJ03","Petits pois et jeunes carottes","LSV03","Betterave rouge","LWED03","Frites","LWES03","Pâtes au fromage râpé","O03","Assomption","PC03","Mars",null,null,"VMR03","Rôti de cheval","VS03","Bifteck haché de veau","VWE03","Cheval","CJ03","Dimanche soir","CC03","1 boîte ou 1 pot pour 1 repas","CD03","Menus viandes weekend"]
["CC04","LMR",null,null,null,null,"DWE04","Bananes","LMR04","Céleri","LSLM04","Choux de Bruxelles","LSMJ04","Ratatouille","LSV04","Carottes","LWED04","Haricots verts",null,null,"O04","Fête du travail","PC04","Avril",null,null,"VMR04","Rôti de porc","VS04","Bouchée à la reine","VWE04","Dinde","CJ04","Lundi à dimanche soirs","CC04","1 boîte pour 1 repas"]
["CC05","LSLM",null,null,null,null,"DWE05","Clémentines","LMR05","Champignons","LSLM05","Couscous","LSMJ05","Raviolis","LSV05","Céleri",null,null,null,null,"O05","Fête nationale","PC05","Mai",null,null,"VMR05","Rôti de veau","VS05","Boudin","VWE05","Poisson","CJ05","Lundi à vendredi midis","CC05","1 boîte pour 2 repas"]
["CC06","LSMJ",null,null,null,null,"DWE06","Crème","LMR06","Concombre","LSLM06","Endives","LSMJ06","Tomates pelées","LSV06","Champignons",null,null,null,null,"O06","Jour de l'an","PC06","Juin",null,null,null,null,"VS06","Cervelas","VWE06","Porc","CJ06","lundi à vendredi soirs","CC06","1 botte ou 1 sachet pour 1 repas"]
["CC07","LSV",null,null,null,null,"DWE07","Dattes","LMR07","Couscous","LSLM07","Haricots verts",null,null,"LSV07","Concombre",null,null,null,null,"O07","Lundi de Pâques","PC07","Juillet",null,null,null,null,"VS07","Cœur","VWE07","Veau","CJ07","Lundi et mardi soirs","CC07","1 botte ou 1 sachet pour 2 repas"]
["CC08","LWED",null,null,null,null,"DWE08","Figues","LMR08","Maïs","LSLM08","Maïs",null,null,"LSV08","Radis",null,null,null,null,"O08","Lundi de Pentecôte","PC08","Août",null,null,null,null,"VS08","Croque-monsieur",null,null,"CJ08","Mercredi et jeudi soirs","CC08","1 morceau de 400 grammes (Leclerc) pour 3 repas"]
["CC09","LWES",null,null,null,null,"DWE09","Fromage blanc","LMR09","Pâtes à la sauce tomates","LSLM09","Paella",null,null,"LSV09","Salade",null,null,null,null,"O09","Noël","PC09","Septembre",null,null,null,null,"VS09","Foie",null,null,"CJ09","Samedi et dimanche midis","CC09","1 morceau de 500 grammes pour 5 repas"]
["CC10","VMR",null,null,null,null,"DWE10","Fruits au sirop","LMR10","Pâtes au beurre","LSLM10","Poireau",null,null,"LSV10","Salsifis",null,null,null,null,"O10","Pâques","PC10","Octobre",null,null,null,null,"VS10","Fromage de tête",null,null,"CJ10","Samedi et dimanche midis et soirs","CC10","1 pack de 4 pots pour le week-end. 1 pot pour 1 repas"]
["CC11","VS",null,null,null,null,"DWE11","Fruits de saison","LMR11","Poireau","LSLM11","Pomme de terre",null,null,"LSV11","Tomates ",null,null,null,null,"O11","Pentecôte","PC11","Novembre",null,null,null,null,"VS11","Jambon",null,null,"CJ11","Samedi midi et soir","CC11","1 pack de 6 pots. 3 pots pour 1 repas"]
["CC12","VWE",null,null,null,null,"DWE12","Gâteau de riz","LMR12","Pomme de terre","LSLM12","Purée",null,null,null,null,null,null,null,null,"O12","Toussaint","PC12","Décembre",null,null,null,null,"VS12","Jambonneau",null,null,"CJ12","Vendredi soir","CC12","1 paquet pour 1 repas"]
[null,null,null,null,null,null,"DWE13","Gâteau de semoule","LMR13","Purée","LSLM13","Quenelles",null,null,null,null,null,null,null,null,"O13","Victoire du 08 mai 1945",null,null,null,null,null,null,"VS13","Mortadelle",null,null,null,null,"CC13","1 paquet pour 2 repas"]
[null,null,null,null,null,null,"DWE14","Gâteaux samedi dimanche","LMR14","Radis","LSLM14","Riz",null,null,null,null,null,null,null,null,null,null,null,null,null,null,null,null,"VS14","Œufs",null,null,null,null,"CC14","1 paquet pour 2 repas. 1 ou 2 saucisses pour 1 repas"]
[null,null,null,null,null,null,"DWE15","Mousse au chocolat","LMR15","Riz",null,null,null,null,null,null,null,null,null,null,null,null,null,null,null,null,null,null,"VS15","Pizza",null,null,null,null,"CC15","1 paquet pour 4 repas"]
[null,null,null,null,null,null,"DWE16","Oranges","LMR16","Salade",null,null,null,null,null,null,null,null,null,null,null,null,null,null,null,null,null,null,"VS16","Poisson",null,null,null,null,"CC16","1 sachet de 2 kilogrammes. 1 pomme pour 1 repas"]
[null,null,null,null,null,null,"DWE17","Petits suisses","LMR17","Tomates",null,null,null,null,null,null,null,null,null,null,null,null,null,null,null,null,null,null,"VS17","Quiche lorraine",null,null,null,null,"CC17","1 sachet pour 2 repas"]
[null,null,null,null,null,null,"DWE18","Pruneaux",null,null,null,null,null,null,null,null,null,null,null,null,null,null,null,null,null,null,null,null,"VS18","Roulade à la pistache",null,null,null,null,"CC18","1 sachet pour 4 repas"]
[null,null,null,null,null,null,"DWE19","Riz au lait",null,null,null,null,null,null,null,null,null,null,null,null,null,null,null,null,null,null,null,null,"VS19","Roulé au fromage",null,null,null,null,"CC19","1 tranche pour 1 repas"]
[null,null,null,null,null,null,"DWE20","Tapioca",null,null,null,null,null,null,null,null,null,null,null,null,null,null,null,null,null,null,null,null,"VS20","Salami",null,null,null,null,"CC20","1 tranche pour 2 repas"]
[null,null,null,null,null,null,"DWE21","Yaourts",null,null,null,null,null,null,null,null,null,null,null,null,null,null,null,null,null,null,null,null,"VS21","Saucisses",null,null,null,null,"CC21","125 grammes pour 1 repas"]
[null,null,null,null,null,null,"DWE22","Tapioca",null,null,null,null,null,null,null,null,null,null,null,null,null,null,null,null,null,null,null,null,"VS22","Saucisson",null,null,null,null,"CC22","20 frites pour 1 repas"]
[null,null,null,null,null,null,"DWE23","Yaourts",null,null,null,null,null,null,null,null,null,null,null,null,null,null,null,null,null,null,null,null,"VS23","Tête persillée",null,null,null,null,"CC23","25 grammes pour 1 repas"]
[null,null,null,null,null,null,null,null,null,null,null,null,null,null,null,null,null,null,null,null,null,null,null,null,null,null,null,null,"VS24","Tête roulée",null,null,null,null,"CC24","3 tranches pour 1 repas"]
[null,null,null,null,null,null,null,null,null,null,null,null,null,null,null,null,null,null,null,null,null,null,null,null,null,null,null,null,"VS25","Thon",null,null,null,null,"CC25","5 cuillères pour 1 repas"]
[null,null,null,null,null,null,null,null,null,null,null,null,null,null,null,null,null,null,null,null,null,null,null,null,null,null,null,null,"VS26","Viande cassoulet",null,null,null,null,"CC26","Unité : 1 branche pour 1 repas"]
[null,null,null,null,null,null,null,null,null,null,null,null,null,null,null,null,null,null,null,null,null,null,null,null,null,null,null,null,"VS27","Viande choucroute",null,null,null,null,"CC27","Unité : 1 morceau pour 2 repas"]
[null,null,null,null,null,null,null,null,null,null,null,null,null,null,null,null,null,null,null,null,null,null,null,null,null,null,null,null,"VS28","Viande paella",null,null,null,null,"CC28","Unité : 1 pour 1 repas"]
[null,null,null,null,null,null,null,null,null,null,null,null,null,null,null,null,null,null,null,null,null,null,null,null,null,null,null,null,null,null,null,null,null,null,"CC29","Unité : 1 pour 2 repas"]
[null,null,null,null,null,null,null,null,null,null,null,null,null,null,null,null,null,null,null,null,null,null,null,null,null,null,null,null,null,null,null,null,null,null,"CC30","Unité : 1 pour 4 repas"]
[null,null,null,null,null,null,null,null,null,null,null,null,null,null,null,null,null,null,null,null,null,null,null,null,null,null,null,null,null,null,null,null,null,null,"CC31","Unité : 1 tête pour 1 repas"]
[null,null,null,null,null,null,null,null,null,null,null,null,null,null,null,null,null,null,null,null,null,null,null,null,null,null,null,null,null,null,null,null,null,null,"CC32","Unité : 2 à 4 pour 1 repas"]
[null,null,null,null,null,null,null,null,null,null,null,null,null,null,null,null,null,null,null,null,null,null,null,null,null,null,null,null,null,null,null,null,null,null,"CC33","Unité : 2 pour 1 repas"]

{"sheet":"Accueil","index":1,"n_rows":0,"n_cols":0,"rows_kept":0,"cut":false,"hidden":false,"merged":[]}

{"sheet":"Liste produits","index":2,"n_rows":5,"n_cols":180,"rows_kept":5,"cut":false,"hidden":false,"merged":[]}
["Numéro création dessert midi retraite","Liste code catégorie dessert midi retraite","Liste nom catégorie dessert midi retraite","Liste code dessert midi retraite","Liste nom dessert midi retraite","Liste code jour dessert midi retraite","Liste nom jour dessert midi retraite","Liste code conditionnement dessert midi retraite","Liste nom conditionnement dessert midi retraite","Liste code destination dessert midi retraite","Liste nom destination dessert midi retraite","Date création dessert midi retraite","Liste code à modifierdessert midi retraite","Liste nom à modifier dessert midi retraite","Intitulé dessert midi retraite","Numéro création dessert soir","Liste code catégorie dessert soir","Liste nom catégorie dessert soir","Liste code dessert soir","Liste nom dessert soir","Liste code jour dessert soir","Liste nom jour dessert soir","Liste code conditionnement dessert soir","Liste nom conditionnement dessert soir","Liste code destination dessert soir","Liste nom destination dessert soir","Date création dessert soir","Liste code à modifier dessert soir","Liste nom à modifier dessert soir","Intitulé dessert soir","Numéro création desserts weekend","Liste code catégorie desserts weekend3","Liste nom catégorie desserts weekend","Liste code desserts weekend","Liste nom desserts weekend","Liste code jour desserts weekend","Liste nom jour desserts weekend","Liste code conditionnement desserts weekend","Liste nom conditionnement desserts weekend","Liste code destination desserts weekend","Liste nom destination desserts weekend","Date création desserts weekend","Liste code à modifier desserts weekend","Liste nom à modifier desserts weekend","Intitulé desserts weekend","Numéro création légumes midi retraite","Liste code catégorie légumes midi retraite","Liste nom catégorie légumes midi retraite","Liste code légumes midi retraite","Liste nom légumes midi retraite","Liste code jour légumes midi retraite","Liste nom jour légumes midi retraite","Liste code conditionnement légumes midi retraite","Liste nom conditionnement légumes midi retraite","Liste code destination légumes midi retraite","Liste nom destination légumes midi retraite","Date création légumes midi retraite","Liste code à modifier légumes midi retraite","Liste nom à modifier légumes midi retraite","Intitulé légumes midi retraite","Numéro création légumes soir lundi mardi","Liste code catégorie légumes soir lundi mardi","Liste nom catégorie légumes soir lundi mardi","Liste code légumes soir lundi mardi","Liste nom légumes soir lundi mardi","Liste code jour légumes soir lundi mardi","Liste nom jour légumes soir lundi mardi","Liste code conditionnement légumes soir lundi mardi","Liste nom conditionnement légumes soir lundi mardi1","Liste code destination légumes soir lundi mardi","Liste nom destination légumes soir lundi mardi","Date création légumes soir lundi mardi","Liste code à modifier légumes soir lundimardi","Liste nom à modifier légumes soir lundi mardi","Intitulé légumes soir lundi mardi","Numéro création légumes soir mercredi jeudi","Liste code catégorie légumes soir mercredi jeudi","Liste nom catégorie légumes soir mercredi jeudi","Liste code légumes soir mercredi jeudi","Liste nom légumes soir mercredi jeudi","Liste code jour légumes soir mercredi jeudi","Liste nom jour légumes soir mercredi jeudi","Liste code conditionnement légumes soir mercredi jeudi","Liste nom conditionnement légumes soir mercredi jeudi","Liste code destination légumes soir mercredi jeudi","Liste nom destination légumes soir mercredi jeudi","Date création légumes soir mercredi jeudi","Liste code à modifier légumes soir mercredi jeudi","Liste nom à modifier légumes soir mercredi jeudi","Intitulé légumes soir mercredi jeudi","Numéro création légumes soir vendredi","Liste code catégorie légumes soir vendredi","Liste nom catégorie légumes soir vendredi","Liste code légumes soir vendredi","Liste nom légumes soir vendredi","Liste code jour légumes soir vendredi","Liste nom jour légumes soir vendredi","Liste code conditionnement légumes soir vendredi","Liste nom conditionnement légumes soir vendredi","Liste code destination légumes soir vendredi","Liste nom destination légumes soir vendredi","Date création légumes soir vendredi","Liste code à modifier légumes soir vendredi","Liste code à modifier légumes soir vendredi2","Intitulé légumes soir vendredi","Numéro création légumes weekend dimanche","Liste code catégorie légumes weekend dimanche","Liste nom catégorie légumes weekend dimanche","Liste code légumes weekend dimanche","Liste nom légumes weekend dimanche","Liste code jour légumes weekend dimanche","Liste nom jour légumes weekend dimanche","Liste code conditionnement légumes weekend dimanche","Liste nom conditionnement légumes weekend dimanche","Liste code destination légumes weekend dimanche","Liste nom destination légumes weekend dimanche","Date création légumes weekend dimanche","Liste code à modifier légumes weekend dimanche","Liste nom à modifier légumes weekend dimanche","Intitulé légumes weekend dimanche","Numéro création légumes weekend samedi","Liste code catégorie légumes weekend samedi","Liste nom catégorie légumes weekend samedi","Liste code légumes weekend samedi","Liste nom légumes weekend samedi","Liste code jour légumes weekend samedi","Liste nom jour légumes weekend samedi","Liste code conditionnement légumes weekend samedi","Liste nom conditionnement légumes weekend samedi","Liste code destination légumes weekend samedi","Liste nom destination légumes weekend samedi","Date création légumes weekend samedi","Liste code à modifier légumes weekend samedi","Liste nom à modifier légumes weekend samedi","Intitulé légumes weekend samedi","Numéro création viandes midi retraite","Liste code catégorie viandes midi retraite","Liste nom catégorie viandes midi retraite","Liste code viandes midi retraite","Liste nom viandes midi retraite","Liste code jour viandes midi retraite","Liste nom jour viandes midi retraite","Liste code conditionnement viandes midi retraite","Liste nom conditionnement viandes midi retraite","Liste code destination viandes midi retraite","Liste nom destination viandes midi retraite","Date création viandes midi retraite","liste code à modifier viandes midi retraite","Liste nom à modifier viandes midi retraite","Intitulé viandes midi retraite","Numéro création viandes soirs","Liste code catégorie viandes soirs","Liste nom catégorie viandes soirs","Liste code viandes soirs","Liste nom viandes soirs","Liste code jour viandes soirs","Liste nom jour viandes soirs","Liste code conditionnement viandes soirs","Liste nom conditionnement viandes soirs","Liste code destination viandes soirs","Liste nom destination viandes soirs","Date création viandes soirs","Liste code àmodifier viandessoirs","Liste nom à modifier viandes soirs","Intitulé viandes soirs","Numéro création viandes weekend","Liste code catégorie viandes weekend","Liste nom catégorie viandes weekend","Liste code viandes weekend","Liste nom viandes weekend","Liste code jour viandes weekend","Liste nom jour viandes weekend","Liste code conditionnement viandes weekend","Liste nom conditionnement viandes weekend","Liste code destination viandes weekend","Liste nom destination viandes weekend","Date création viandes weekend","Liste code à modifier viandes weekend","Liste nom à modifier viandes weekend","Intitulé viandes weekend"]
[1,"CC01","DMR","DMR01","Pomme","CJ05","Lundi à vendredi midis","CC016","1 sachet de 2 kilogrammes. 1 pomme pour 1 repas","CD02","Menus midi retraite","2019-03-29","CÀM1","Non",{"$f":"TEXT(TabListeProduits[Numéro création dessert midi retraite],\"0000\") & \"-\" & TabListeProduits[Liste nom catégorie dessert midi retraite]","v":"0001-DMR"},1,"CC02","DS","DS01","Pomme","CJ06","lundi à vendredi soirs","CC016","1 sachet de 2 kilogrammes. 1 pomme pour 1 repas","CD01","Menus journaliers","2019-03-27","CÀM1","Non",{"$f":"TEXT(TabListeProduits[Numéro création dessert soir],\"0000\") & \"-\" & TabListeProduits[Liste nom catégorie dessert soir]","v":"0001-DS"},1,"CC03","DWE","DWE01","Ananas","CJ010","Samedi et dimanche midis et soirs","CC030","Unité : 1 pour 4 repas","CD01","Menus journaliers","2019-03-29","CÀM1","Non",{"$f":"TEXT(TabListeProduits[Numéro création desserts weekend],\"0000\") & \"-\" & TabListeProduits[Liste nom catégorie desserts weekend]","v":"0001-DWE"},null,null,null,null,null,null,null,null,null,null,null,null,null,null,{"$f":"TEXT(TabListeProduits[Numéro création légumes midi retraite],\"0000\") & \"-\" & TabListeProduits[Liste nom catégorie légumes midi retraite]","v":"0000-"},null,null,null,null,null,null,null,null,null,null,null,null,null,null,{"$f":"TEXT(TabListeProduits[Numéro création légumes soir lundi mardi],\"0000\") & \"-\" & TabListeProduits[Liste nom catégorie légumes soir lundi mardi]","v":"0000-"},null,null,null,null,null,null,null,null,null,null,null,null,null,null,{"$f":"TEXT(TabListeProduits[Numéro création légumes soir mercredi jeudi],\"0000\") & \"-\" & TabListeProduits[Liste nom catégorie légumes soir mercredi jeudi]","v":"0000-"},null,null,null,null,null,null,null,null,null,null,null,null,null,null,{"$f":"TEXT(TabListeProduits[Numéro création légumes soir vendredi],\"0000\") & \"-\" & TabListeProduits[Liste nom catégorie légumes soir vendredi]","v":"0000-"},null,null,null,null,null,null,null,null,null,null,null,null,null,null,{"$f":"TEXT(TabListeProduits[Numéro création légumes weekend dimanche],\"0000\") & \"-\" & TabListeProduits[Liste nom catégorie légumes weekend dimanche]","v":"0000-"},null,null,null,null,null,null,null,null,null,null,null,null,null,null,{"$f":"TEXT(TabListeProduits[Numéro création légumes weekend samedi],\"0000\") & \"-\" & TabListeProduits[Liste nom catégorie légumes weekend samedi]","v":"0000-"},null,null,null,null,null,null,null,null,null,null,null,null,null,null,{"$f":"TEXT(TabListeProduits[Numéro création viandes midi retraite],\"0000\") & \"-\" & TabListeProduits[Liste nom catégorie viandes midi retraite]","v":"0000-"},null,null,null,null,null,null,null,null,null,null,null,null,null,null,{"$f":"TEXT(TabListeProduits[Numéro création viandes soirs],\"0000\")& \"-\" & TabListeProduits[Liste nom catégorie viandes soirs]","v":"0000-"},null,null,null,null,null,null,null,null,null,null,null,null,null,null,{"$f":"TEXT(TabListeProduits[Numéro création viandes weekend],\"0000\") & \"-\" & TabListeProduits[Liste code catégorie viandes weekend]","v":"0000-"}]
[null,null,null,null,null,null,null,null,null,null,null,null,null,null,{"$f":"TEXT(TabListeProduits[Numéro création dessert midi retraite],\"0000\") & \"-\" & TabListeProduits[Liste nom catégorie dessert midi retraite]","v":"0000-"},null,null,null,null,null,null,null,null,null,null,null,null,null,null,{"$f":"TEXT(TabListeProduits[Numéro création dessert soir],\"0000\") & \"-\" & TabListeProduits[Liste nom catégorie dessert soir]","v":"0000-"},2,"CC03","DWE","DWE02","Autres fruits","CJ010","Samedi et dimanche midis et soirs","CC032","Unité : 2 à 4 pour 1 repas","CD01","Menus journaliers","2019-03-30","CÀM1","Non",{"$f":"TEXT(TabListeProduits[Numéro création desserts weekend],\"0000\") & \"-\" & TabListeProduits[Liste nom catégorie desserts weekend]","v":"0002-DWE"},null,null,null,null,null,null,null,null,null,null,null,null,null,null,{"$f":"TEXT(TabListeProduits[Numéro création légumes midi retraite],\"0000\") & \"-\" & TabListeProduits[Liste nom catégorie légumes midi retraite]","v":"0000-"},null,null,null,null,null,null,null,null,null,null,null,null,null,null,{"$f":"TEXT(TabListeProduits[Numéro création légumes soir lundi mardi],\"0000\") & \"-\" & TabListeProduits[Liste nom catégorie légumes soir lundi mardi]","v":"0000-"},null,null,null,null,null,null,null,null,null,null,null,null,null,null,{"$f":"TEXT(TabListeProduits[Numéro création légumes soir mercredi jeudi],\"0000\") & \"-\" & TabListeProduits[Liste nom catégorie légumes soir mercredi jeudi]","v":"0000-"},null,null,null,null,null,null,null,null,null,null,null,null,null,null,{"$f":"TEXT(TabListeProduits[Numéro création légumes soir vendredi],\"0000\") & \"-\" & TabListeProduits[Liste nom catégorie légumes soir vendredi]","v":"0000-"},null,null,null,null,null,null,null,null,null,null,null,null,null,null,{"$f":"TEXT(TabListeProduits[Numéro création légumes weekend dimanche],\"0000\") & \"-\" & TabListeProduits[Liste nom catégorie légumes weekend dimanche]","v":"0000-"},null,null,null,null,null,null,null,null,null,null,null,null,null,null,{"$f":"TEXT(TabListeProduits[Numéro création légumes weekend samedi],\"0000\") & \"-\" & TabListeProduits[Liste nom catégorie légumes weekend samedi]","v":"0000-"},null,null,null,null,null,null,null,null,null,null,null,null,null,null,{"$f":"TEXT(TabListeProduits[Numéro création viandes midi retraite],\"0000\") & \"-\" & TabListeProduits[Liste nom catégorie viandes midi retraite]","v":"0000-"},null,null,null,null,null,null,null,null,null,null,null,null,null,null,{"$f":"TEXT(TabListeProduits[Numéro création viandes soirs],\"0000\")& \"-\" & TabListeProduits[Liste nom catégorie viandes soirs]","v":"0000-"},null,null,null,null,null,null,null,null,null,null,null,null,null,null,{"$f":"TEXT(TabListeProduits[Numéro création viandes weekend],\"0000\") & \"-\" & TabListeProduits[Liste code catégorie viandes weekend]","v":"0000-"}]
[null,null,null,null,null,null,null,null,null,null,null,null,null,null,{"$f":"TEXT(TabListeProduits[Numéro création dessert midi retraite],\"0000\") & \"-\" & TabListeProduits[Liste nom catégorie dessert midi retraite]","v":"0000-"},null,null,null,null,null,null,null,null,null,null,null,null,null,null,{"$f":"TEXT(TabListeProduits[Numéro création dessert soir],\"0000\") & \"-\" & TabListeProduits[Liste nom catégorie dessert soir]","v":"0000-"},2,"CC03","DWE","DWE03","Avocats","CJ010","Samedi et dimanche midis et soirs","CC028","Unité : 1 pour 1 repas","CD01","Menus journaliers","2019-03-30","CÀM1","Non",{"$f":"TEXT(TabListeProduits[Numéro création desserts weekend],\"0000\") & \"-\" & TabListeProduits[Liste nom catégorie desserts weekend]","v":"0002-DWE"},null,null,null,null,null,null,null,null,null,null,null,null,null,null,{"$f":"TEXT(TabListeProduits[Numéro création légumes midi retraite],\"0000\") & \"-\" & TabListeProduits[Liste nom catégorie légumes midi retraite]","v":"0000-"},null,null,null,null,null,null,null,null,null,null,null,null,null,null,{"$f":"TEXT(TabListeProduits[Numéro création légumes soir lundi mardi],\"0000\") & \"-\" & TabListeProduits[Liste nom catégorie légumes soir lundi mardi]","v":"0000-"},null,null,null,null,null,null,null,null,null,null,null,null,null,null,{"$f":"TEXT(TabListeProduits[Numéro création légumes soir mercredi jeudi],\"0000\") & \"-\" & TabListeProduits[Liste nom catégorie légumes soir mercredi jeudi]","v":"0000-"},null,null,null,null,null,null,null,null,null,null,null,null,null,null,{"$f":"TEXT(TabListeProduits[Numéro création légumes soir vendredi],\"0000\") & \"-\" & TabListeProduits[Liste nom catégorie légumes soir vendredi]","v":"0000-"},null,null,null,null,null,null,null,null,null,null,null,null,null,null,{"$f":"TEXT(TabListeProduits[Numéro création légumes weekend dimanche],\"0000\") & \"-\" & TabListeProduits[Liste nom catégorie légumes weekend dimanche]","v":"0000-"},null,null,null,null,null,null,null,null,null,null,null,null,null,null,{"$f":"TEXT(TabListeProduits[Numéro création légumes weekend samedi],\"0000\") & \"-\" & TabListeProduits[Liste nom catégorie légumes weekend samedi]","v":"0000-"},null,null,null,null,null,null,null,null,null,null,null,null,null,null,{"$f":"TEXT(TabListeProduits[Numéro création viandes midi retraite],\"0000\") & \"-\" & TabListeProduits[Liste nom catégorie viandes midi retraite]","v":"0000-"},null,null,null,null,null,null,null,null,null,null,null,null,null,null,{"$f":"TEXT(TabListeProduits[Numéro création viandes soirs],\"0000\")& \"-\" & TabListeProduits[Liste nom catégorie viandes soirs]","v":"0000-"},null,null,null,null,null,null,null,null,null,null,null,null,null,null,{"$f":"TEXT(TabListeProduits[Numéro création viandes weekend],\"0000\") & \"-\" & TabListeProduits[Liste code catégorie viandes weekend]","v":"0000-"}]
[null,null,null,null,null,null,null,null,null,null,null,null,null,null,{"$f":"TEXT(TabListeProduits[Numéro création dessert midi retraite],\"0000\") & \"-\" & TabListeProduits[Liste nom catégorie dessert midi retraite]","v":"0000-"},null,null,null,null,null,null,null,null,null,null,null,null,null,null,{"$f":"TEXT(TabListeProduits[Numéro création dessert soir],\"0000\") & \"-\" & TabListeProduits[Liste nom catégorie dessert soir]","v":"0000-"},2,"CC03","DWE","DWE05","Clémentines","CJ010","Samedi et dimanche midis et soirs","CC032","Unité : 2 à 4 pour 1 repas","CD01","Menus journaliers","2019-03-30","CÀM1","Non",{"$f":"TEXT(TabListeProduits[Numéro création desserts weekend],\"0000\") & \"-\" & TabListeProduits[Liste nom catégorie desserts weekend]","v":"0002-DWE"},null,null,null,null,null,null,null,null,null,null,null,null,null,null,{"$f":"TEXT(TabListeProduits[Numéro création légumes midi retraite],\"0000\") & \"-\" & TabListeProduits[Liste nom catégorie légumes midi retraite]","v":"0000-"},null,null,null,null,null,null,null,null,null,null,null,null,null,null,{"$f":"TEXT(TabListeProduits[Numéro création légumes soir lundi mardi],\"0000\") & \"-\" & TabListeProduits[Liste nom catégorie légumes soir lundi mardi]","v":"0000-"},null,null,null,null,null,null,null,null,null,null,null,null,null,null,{"$f":"TEXT(TabListeProduits[Numéro création légumes soir mercredi jeudi],\"0000\") & \"-\" & TabListeProduits[Liste nom catégorie légumes soir mercredi jeudi]","v":"0000-"},null,null,null,null,null,null,null,null,null,null,null,null,null,null,{"$f":"TEXT(TabListeProduits[Numéro création légumes soir vendredi],\"0000\") & \"-\" & TabListeProduits[Liste nom catégorie légumes soir vendredi]","v":"0000-"},null,null,null,null,null,null,null,null,null,null,null,null,null,null,{"$f":"TEXT(TabListeProduits[Numéro création légumes weekend dimanche],\"0000\") & \"-\" & TabListeProduits[Liste nom catégorie légumes weekend dimanche]","v":"0000-"},null,null,null,null,null,null,null,null,null,null,null,null,null,null,{"$f":"TEXT(TabListeProduits[Numéro création légumes weekend samedi],\"0000\") & \"-\" & TabListeProduits[Liste nom catégorie légumes weekend samedi]","v":"0000-"},null,null,null,null,null,null,null,null,null,null,null,null,null,null,{"$f":"TEXT(TabListeProduits[Numéro création viandes midi retraite],\"0000\") & \"-\" & TabListeProduits[Liste nom catégorie viandes midi retraite]","v":"0000-"},null,null,null,null,null,null,null,null,null,null,null,null,null,null,{"$f":"TEXT(TabListeProduits[Numéro création viandes soirs],\"0000\")& \"-\" & TabListeProduits[Liste nom catégorie viandes soirs]","v":"0000-"},null,null,null,null,null,null,null,null,null,null,null,null,null,null,{"$f":"TEXT(TabListeProduits[Numéro création viandes weekend],\"0000\") & \"-\" & TabListeProduits[Liste code catégorie viandes weekend]","v":"0000-"}]